[Event "Teplice Open 2019"]
[Site "Teplice"]
[Date "2019.06.19"]
[Round "5.8"]
[White "Rubes, Jan"]
[Black "Epishin, Vladimir"]
[Result "0-1"]
[ECO "E60"]
[WhiteElo "2352"]
[BlackElo "2564"]
[Annotator "RC"]
[PlyCount "140"]
[EventDate "2019.06.15"]
[EventType "swiss"]
[EventCountry "CZE"]
[SourceTitle "playchess.com"]
[Source "ChessBase"]
[SourceQuality "1"]
[TimeControl "40/5400+30:1800+30"]

1. d4 {[%emt 0:00:00]} Nf6 {[%emt 0:01:21]} 2. c4 {[%emt 0:00:00]} d6 {[%emt 0:00:31]} 3. Nf3 {[%emt 0:01:25]} g6 {[%emt 0:04:09]} 4. g3 {[%emt 0:00:09]} Bg7 {[%emt 0:00:22]} 5. Bg2 {[%emt 0:00:05]} c6 {[%emt 0:00:16]} 6. Nc3 {[%emt 0:00:31]} Bf5 {[%emt 0:00:23]} 7. Nh4 {[%emt 0:05:02]} Be6 {[%emt 0:00:30]} 8. d5 {[%emt 0:00:06]} cxd5 {[%emt 0:01:59]} 9. cxd5 {[%emt 0:00:12]} Bd7 {[%emt 0:01:10]} 10. O-O {[%emt 0:00:07]} a5 {[%emt 0:01:38]} 11. Be3 {[%emt 0:02:57]} b5 {[%emt 0:06:01]} 12. Bd4 {[%emt 0:06:30]} O-O {[%emt 0:00:17]} 13. e4 {[%emt 0:23:56]} b4 {[%emt 0:02:12]} 14. Ne2 {[%emt 0:01:47]} Bb5 {[%emt 0:02:13]} 15. a4 {[%emt 0:03:34]} Ba6 {[%emt 0:04:22]} 16. Re1 {[%emt 0:00:55]} Nbd7 {[%emt 0:00:06]} 17. Nc1 {[%emt 0:02:10]} Rc8 {[%emt 0:02:24]} 18. Nb3 {[%emt 0:01:57]} Bc4 {[%emt 0:02:52]} 19. Rc1 {[%emt 0:08:03]} Bxb3 {[%emt 0:05:23]} 20. Qxb3 {[%emt 0:00:04]} Rxc1 {[%emt 0:03:32]} 21. Rxc1 {[%emt 0:00:03]} Nxe4 {[%emt 0:00:18]} 22. Bxg7 {[%emt 0:02:30]} Nec5 {[%emt 0:00:08]} 23. Qe3 {[%emt 0:00:46]} Kxg7 {[%emt 0:00:11]} 24. Re1 {[%emt 0:02:28]} e5 {[%emt 0:06:17]} 25. dxe6 {[%emt 0:00:08]} Nxe6 {[%emt 0:00:07]} 26. Bd5 {[%emt 0:13:50]} Ndc5 {[%emt 0:00:34]} 27. Ng2 {[%emt 0:02:11]} Qf6 {[%emt 0:04:21]} 28. Qd2 {[%emt 0:00:37]} Re8 {[%emt 0:06:42]} 29. Ne3 {[%emt 0:00:30]} Nc7 {[%emt 0:02:35]} 30. Bc6 {[%emt 0:00:25]} Re6 {[%emt 0:01:13]} 31. Rd1 {[%emt 0:00:07]} Nb3 {[%emt 0:10:02]} 32. Qc2 {[%emt 0:03:55]} Nd4 {[%emt 0:00:50]} 33. Qc4 {[%emt 0:00:04]} Nxc6 {[%emt 0:07:19]} 34. Qxc6 {[%emt 0:00:04]} Ne8 {[%emt 0:00:10]} 35. b3 {[%emt 0:06:06]} Qb2 {[%emt 0:01:58]} 36. Qc2 {[%emt 0:00:04]} Qxc2 {[%emt 0:06:45]} 37. Nxc2 {[%emt 0:00:23]} Nf6 {[%emt 0:00:04]} 38. Nd4 {[%emt 0:01:02]} Re5 {[%emt 0:00:46]} 39. Nb5 {[%emt 0:01:14]} Ne4 {[%emt 0:04:43]} 40. Nxd6 {[%emt 0:00:40]} Nc3 {[%emt 0:02:46]} 41. Nc4 {[%emt 0:31:05]} Rc5 {[%emt 0:30:22]} 42. Rd7 {[%emt 0:08:08]} Nxa4 {[%emt 0:00:43]} 43. Nxa5 {[%emt 0:00:00]} Rxa5 {[%emt 0:00:00]} 44. bxa4 {[%emt 0:00:00]} Rxa4 {[%emt 0:00:00]} 45. Rb7 {[%emt 0:00:00]} Kf6 {[%emt 0:00:00]} 46. Kg2 {[%emt 0:00:00]} h5 {[%emt 0:00:00]} 47. h4 {[%emt 0:00:00]} Ke6 {[%emt 0:00:00]} 48. Kf3 {[%emt 0:00:00]} f6 {[%emt 0:00:00]} 49. Ke4 {[%emt 0:01:29]} Kd6 {[%emt 0:00:00]} 50. Kd4 {[%emt 0:00:19]} b3+ {[%emt 0:00:00]} 51. Kc3 {[%emt 0:02:46]} Ra2 {[%emt 0:00:00]} 52. Rxb3 {[%emt 0:00:03]} Rxf2 {[%emt 0:00:00]} 53. Kd4 {[%emt 0:00:07]} Re2 {[%emt 0:00:00]} 54. Rb7 {[%emt 0:01:38]} Ke6 {[%emt 0:00:00]} 55. Rb5 {[%emt 0:01:14]} Re1 {[%emt 0:00:00]} 56. Ra5 {[%emt 0:00:13]} Re5 {[%emt 0:00:00]} 57. Ra3 {[%emt 0:00:04]} g5 {[%emt 0:00:00]} 58. hxg5 {[%emt 0:00:12]} fxg5 {[%emt 0:00:00]} 59. Rf3 {[%emt 0:00:27]} Ra5 {[%emt 0:00:00]} 60. Rf8 {[%emt 0:02:23]} Ra3 {[%emt 0:00:00]} 61. Rh8 {[%emt 0:00:17]} Kf5 {[%emt 0:00:00]} 62. Rxh5 {[%emt 0:00:06]} Kg4 {[%emt 0:00:00]} 63. Rh1 {[%emt 0:00:07]} Kxg3 {[%emt 0:00:00]} 64. Ke4 {[%emt 0:00:38]} g4 {[%emt 0:00:00]} 65. Rg1+ {[%emt 0:00:57]} Kh3 {[%emt 0:00:00]} 66. Kf4 {[%emt 0:00:16]} g3 {[%emt 0:00:00]} 67. Rh1+ {[%emt 0:00:16]} Kg2 {[%emt 0:00:00]} 68. Rb1 {[%emt 0:00:05]} Kh2 {[%emt 0:00:00]} 69. Rb8 {[%emt 0:00:23]} g2 {[%emt 0:00:00]} 70. Rh8+ {[%emt 0:00:13]} Rh3 {[%emt 0:00:00]} 0-1

[Event "Teplice Open 2019"]
[Site "Teplice"]
[Date "2019.06.19"]
[Round "5.9"]
[White "Plat, Vojtech"]
[Black "Kett, Tim"]
[Result "1-0"]
[ECO "E67"]
[WhiteElo "2547"]
[BlackElo "2197"]
[Annotator "ChessBase"]
[PlyCount "51"]
[EventDate "2019.06.15"]
[EventType "swiss"]
[EventCountry "CZE"]
[SourceTitle "playchess.com"]
[Source "ChessBase"]
[SourceQuality "1"]
[TimeControl "40/5400+30:1800+30"]

1. d4 {[%emt 0:00:00]} Nf6 {[%emt 0:04:06]} 2. c4 {[%emt 0:00:00]} g6 {[%emt 0:00:05]} 3. g3 {[%emt 0:00:00]} Bg7 {[%emt 0:00:05]} 4. Bg2 {[%emt 0:00:00]} O-O {[%emt 0:00:07]} 5. Nc3 {[%emt 0:00:00]} d6 {[%emt 0:00:07]} 6. Nf3 {[%emt 0:00:00]} Nbd7 {[%emt 0:00:09]} 7. O-O {[%emt 0:00:31]} e5 {[%emt 0:00:10]} 8. Be3 {[%emt 0:00:17]} Ng4 {[%emt 0:04:05]} 9. Bg5 {[%emt 0:00:04]} f6 {[%emt 0:00:54]} 10. Bc1 {[%emt 0:00:03]} Kh8 {[%emt 0:14:43]} 11. h3 {[%emt 0:05:10]} Nh6 {[%emt 0:01:11]} 12. dxe5 {[%emt 0:01:02]} Nxe5 {[%emt 0:01:24]} 13. Nxe5 {[%emt 0:01:50]} fxe5 {[%emt 0:00:14]} 14. c5 {[%emt 0:01:21]} Nf5 {[%emt 0:02:26]} 15. cxd6 {[%emt 0:04:39]} cxd6 {[%emt 0:00:08]} 16. Ne4 {[%emt 0:00:24]} d5 {[%emt 0:05:02]} 17. Bg5 {[%emt 0:00:09]} Qa5 {[%emt 0:08:54]} 18. b4 {[%emt 0:07:42]} Qxb4 {[%emt 0:00:13]} 19. Qxd5 {[%emt 0:00:05]} Nd4 {[%emt 0:01:44]} 20. e3 {[%emt 0:03:53]} Ne2+ {[%emt 0:17:55]} 21. Kh2 {[%emt 0:00:06]} Nc3 {[%emt 0:00:36]} 22. Nxc3 {[%emt 0:02:01]} Qxc3 {[%emt 0:00:06]} 23. Be7 {[%emt 0:01:38]} Re8 {[%emt 0:08:02]} 24. Rac1 {[%emt 0:00:47]} Qb2 {[%emt 0:00:16]} 25. Qf7 {[%emt 0:00:25]} Bf5 {[%emt 0:01:19]} 26. Bf6 {[%emt 0:00:03]} 1-0

[Event "Teplice Open 2019"]
[Site "Teplice"]
[Date "2019.06.19"]
[Round "5.10"]
[White "Dragnev, Valentin"]
[Black "Mazur, Stefan"]
[Result "1-0"]
[ECO "E81"]
[WhiteElo "2521"]
[BlackElo "2426"]
[Annotator "ChessBase"]
[PlyCount "77"]
[EventDate "2019.06.15"]
[EventType "swiss"]
[EventCountry "CZE"]
[SourceTitle "playchess.com"]
[Source "ChessBase"]
[SourceQuality "1"]
[TimeControl "40/5400+30:1800+30"]

1. d4 {[%emt 0:00:00]} Nf6 {[%emt 0:00:00]} 2. c4 {[%emt 0:00:00]} g6 {[%emt 0:00:26]} 3. Nc3 {[%emt 0:00:00]} Bg7 {[%emt 0:00:09]} 4. e4 {[%emt 0:00:00]} d6 {[%emt 0:00:08]} 5. f3 {[%emt 0:00:01]} O-O {[%emt 0:00:31]} 6. Be3 {[%emt 0:00:03]} c5 {[%emt 0:00:17]} 7. Nge2 {[%emt 0:00:13]} Nc6 {[%emt 0:00:26]} 8. d5 {[%emt 0:00:04]} Ne5 {[%emt 0:01:41]} 9. Ng3 {[%emt 0:00:06]} h5 {[%emt 0:00:40]} 10. Be2 {[%emt 0:00:08]} h4 {[%emt 0:00:11]} 11. Nf1 {[%emt 0:00:04]} e6 {[%emt 0:00:14]} 12. Bg5 {[%emt 0:00:03]} exd5 {[%emt 0:02:03]} 13. Nxd5 {[%emt 0:00:45]} Be6 {[%emt 0:00:16]} 14. Bxh4 {[%emt 0:00:50]} Bxd5 {[%emt 0:00:14]} 15. cxd5 {[%emt 0:03:11]} c4 {[%emt 0:00:13]} 16. Bf2 {[%emt 0:32:36]} Nh5 {[%emt 0:05:22]} 17. g3 {[%emt 0:12:46]} f5 {[%emt 0:31:27]} 18. Nd2 {[%emt 0:09:12]} fxe4 {[%emt 0:05:24]} 19. Nxe4 {[%emt 0:00:29]} Qa5+ {[%emt 0:05:31]} 20. Kf1 {[%emt 0:01:49]} Nf6 {[%emt 0:04:01]} 21. Nc3 {[%emt 0:09:04]} Nfg4 {[%emt 0:07:54]} 22. Ne4 {[%emt 0:10:31]} Nxf2 {[%emt 0:12:55]} 23. Nxf2 {[%emt 0:00:05]} Nxf3 {[%emt 0:14:11]} 24. Bxf3 {[%emt 0:01:56]} Rxf3 {[%emt 0:00:36]} 25. Qxf3 {[%emt 0:04:50]} Rf8 {[%emt 0:00:13]} 26. Qd1 {[%emt 0:11:49]} Qc5 {[%emt 0:01:48]} 27. Qc2 {[%emt 0:00:14]} Bd4 {[%emt 0:05:32]} 28. Qxg6+ {[%emt 0:00:02]} Bg7 {[%emt 0:00:27]} 29. Qc2 {[%emt 0:01:41]} Bd4 {[%emt 0:00:05]} 30. Qg6+ {[%emt 0:00:12]} Bg7 {[%emt 0:00:05]} 31. Kg2 {[%emt 0:00:57]} Qxf2+ {[%emt 0:00:58]} 32. Kh3 {[%emt 0:00:01]} Rf6 {[%emt 0:00:08]} 33. Qe8+ {[%emt 0:00:27]} Bf8 {[%emt 0:00:19]} 34. Raf1 {[%emt 0:01:00]} Rh6+ {[%emt 0:00:14]} 35. Kg4 {[%emt 0:00:02]} Qd4+ {[%emt 0:01:52]} 36. Rf4 {[%emt 0:00:06]} Qg7+ {[%emt 0:00:37]} 37. Kf3 {[%emt 0:00:21]} Rf6 {[%emt 0:00:10]} 38. Re1 {[%emt 0:00:58]} Rxf4+ {[%emt 0:00:14]} 39. gxf4 {[%emt 0:00:48]} 1-0

[Event "Teplice Open 2019"]
[Site "Teplice"]
[Date "2019.06.19"]
[Round "5.11"]
[White "Halvax, Georg"]
[Black "Lagarde, Maxime"]
[Result "0-1"]
[ECO "A58"]
[WhiteElo "2408"]
[BlackElo "2599"]
[Annotator "ChessBase"]
[PlyCount "66"]
[EventDate "2019.06.15"]
[EventType "swiss"]
[EventCountry "CZE"]
[SourceTitle "playchess.com"]
[Source "ChessBase"]
[SourceQuality "1"]
[TimeControl "40/5400+30:1800+30"]

1. d4 {[%emt 0:00:00]} Nf6 {[%emt 0:00:00]} 2. c4 {[%emt 0:00:00]} c5 {[%emt 0:00:00]} 3. d5 {[%emt 0:00:00]} b5 {[%emt 0:00:00]} 4. cxb5 {[%emt 0:00:06]} a6 {[%emt 0:00:00]} 5. bxa6 {[%emt 0:00:11]} g6 {[%emt 0:00:00]} 6. Nc3 {[%emt 0:00:24]} Bg7 {[%emt 0:00:07]} 7. e4 {[%emt 0:00:36]} O-O {[%emt 0:00:22]} 8. a7 {[%emt 0:00:07]} Rxa7 {[%emt 0:00:18]} 9. Nf3 {[%emt 0:00:30]} d6 {[%emt 0:08:23]} 10. Be2 {[%emt 0:01:35]} e6 {[%emt 0:06:47]} 11. dxe6 {[%emt 0:07:09]} fxe6 {[%emt 0:13:49]} 12. e5 {[%emt 0:08:36]} dxe5 {[%emt 0:00:41]} 13. Qxd8 {[%emt 0:00:10]} Rxd8 {[%emt 0:00:05]} 14. Be3 {[%emt 0:17:56]} Rb7 {[%emt 0:02:08]} 15. Bxc5 {[%emt 0:05:10]} Rxb2 {[%emt 0:02:17]} 16. Be7 {[%emt 0:03:29]} Nd5 {[%emt 0:05:36]} 17. Bxd8 {[%emt 0:04:37]} Nxc3 {[%emt 0:00:21]} 18. Bc4 {[%emt 0:06:05]} Nc6 {[%emt 0:06:09]} 19. Bg5 {[%emt 0:01:51]} Na5 {[%emt 0:02:21]} 20. Bb3 {[%emt 0:09:00]} Re2+ {[%emt 0:01:24]} 21. Kf1 {[%emt 0:00:02]} Ba6 {[%emt 0:08:04]} 22. Bxe6+ {[%emt 0:05:01]} Kf8 {[%emt 0:00:33]} 23. Kg1 {[%emt 0:02:47]} e4 {[%emt 0:00:35]} 24. Nh4 {[%emt 0:08:26]} Bd4 {[%emt 0:05:35]} 25. h3 {[%emt 0:01:37]} Rxf2 {[%emt 0:02:10]} 26. Kh2 {[%emt 0:02:54]} Be5+ {[%emt 0:00:22]} 27. Kg1 {[%emt 0:00:08]} Bg3 {[%emt 0:01:48]} 28. Bg4 {[%emt 0:01:58]} Nc4 {[%emt 0:02:48]} 29. Rc1 {[%emt 0:03:01]} Ne5 {[%emt 0:00:58]} 30. Bh6+ {[%emt 0:04:29]} Ke8 {[%emt 0:00:27]} 31. Bg7 {[%emt 0:00:06]} Nf3+ {[%emt 0:02:56]} 32. Bxf3 {[%emt 0:00:17]} exf3 {[%emt 0:00:03]} 33. Bxc3 {[%emt 0:00:13]} Rxg2+ {[%emt 0:00:05]} 0-1

[Event "Teplice Open 2019"]
[Site "Teplice"]
[Date "2019.06.19"]
[Round "5.13"]
[White "Dastan, Muhammed Batuhan"]
[Black "Di Nicolantonio, Lucas"]
[Result "1-0"]
[ECO "B90"]
[WhiteElo "2561"]
[BlackElo "2379"]
[Annotator "ChessBase"]
[PlyCount "44"]
[EventDate "2019.06.15"]
[EventType "swiss"]
[EventCountry "CZE"]
[SourceTitle "playchess.com"]
[Source "ChessBase"]
[SourceQuality "1"]
[TimeControl "40/5400+30:1800+30"]

1. e4 {[%emt 0:00:00]} c5 {[%emt 0:00:00]} 2. Nf3 {[%emt 0:00:00]} d6 {[%emt 0:00:07]} 3. d4 {[%emt 0:00:00]} cxd4 {[%emt 0:00:15]} 4. Nxd4 {[%emt 0:00:00]} Nf6 {[%emt 0:00:07]} 5. Nc3 {[%emt 0:00:00]} a6 {[%emt 0:00:20]} 6. h4 {[%emt 0:00:00]} e5 {[%emt 0:01:10]} 7. Nb3 {[%emt 0:00:02]} Be7 {[%emt 0:00:38]} 8. Bg5 {[%emt 0:00:30]} Nbd7 {[%emt 0:00:30]} 9. a4 {[%emt 0:00:30]} b6 {[%emt 0:00:30]} 10. g4 {[%emt 0:00:30]} Bb7 {[%emt 0:00:30]} 11. Bg2 {[%emt 0:00:30]} Rc8 {[%emt 0:00:30]} 12. Bxf6 {[%emt 0:08:24]} Nxf6 {[%emt 0:08:03]} 13. g5 {[%emt 0:00:06]} Nd7 {[%emt 0:01:48]} 14. Rh3 {[%emt 0:12:20]} Nf8 {[%emt 0:18:10]} 15. Nc1 {[%emt 0:06:45]} Ne6 {[%emt 0:02:45]} 16. N1e2 {[%emt 0:00:24]} O-O {[%emt 0:04:52]} 17. Rg3 {[%emt 0:02:24]} b5 {[%emt 0:13:55]} 18. axb5 {[%emt 0:09:42]} axb5 {[%emt 0:00:06]} 19. Nxb5 {[%emt 0:00:30]} d5 {[%emt 0:00:30]} 20. exd5 {[%emt 0:00:30]} Nf4 {[%emt 0:00:30]} 21. Nxf4 {[%emt 0:00:30]} exf4 {[%emt 0:00:30]} 22. Rb3 {[%emt 0:00:30]} Rc4 {[%emt 0:23:44]} 1-0

[Event "Teplice Open 2019"]
[Site "Teplice"]
[Date "2019.06.19"]
[Round "5.14"]
[White "Stocek, Jiri"]
[Black "Pajeken, Jakob Leon"]
[Result "1-0"]
[ECO "D30"]
[WhiteElo "2551"]
[BlackElo "2359"]
[Annotator "ChessBase"]
[PlyCount "55"]
[EventDate "2019.06.15"]
[EventType "swiss"]
[EventCountry "CZE"]
[SourceTitle "playchess.com"]
[Source "ChessBase"]
[SourceQuality "1"]
[TimeControl "40/5400+30:1800+30"]

1. c4 {[%emt 0:00:38]} e6 {[%emt 0:00:00]} 2. d4 {[%emt 0:01:49]} d5 {[%emt 0:01:06]} 3. Nf3 {[%emt 0:01:00]} Nf6 {[%emt 0:00:00]} 4. Bg5 {[%emt 0:00:49]} dxc4 {[%emt 0:00:00]} 5. Qa4+ {[%emt 0:00:50]} Nbd7 {[%emt 0:01:02]} 6. e4 {[%emt 0:02:59]} c6 {[%emt 0:16:01]} 7. Qxc4 {[%emt 0:03:38]} h6 {[%emt 0:01:41]} 8. Bxf6 {[%emt 0:00:18]} Qxf6 {[%emt 0:00:49]} 9. e5 {[%emt 0:06:04]} Qd8 {[%emt 0:09:13]} 10. Nc3 {[%emt 0:06:14]} Nb6 {[%emt 0:03:57]} 11. Qb3 {[%emt 0:01:21]} a5 {[%emt 0:06:38]} 12. a3 {[%emt 0:07:15]} a4 {[%emt 0:01:52]} 13. Qc2 {[%emt 0:00:24]} Nd5 {[%emt 0:07:41]} 14. Ne4 {[%emt 0:02:15]} Bd7 {[%emt 0:03:00]} 15. Rc1 {[%emt 0:05:19]} b6 {[%emt 0:07:05]} 16. Bc4 {[%emt 0:01:34]} Be7 {[%emt 0:06:21]} 17. O-O {[%emt 0:05:46]} Ra5 {[%emt 0:04:42]} 18. Ba2 {[%emt 0:02:58]} Qb8 {[%emt 0:03:34]} 19. Rfe1 {[%emt 0:06:17]} Qa7 {[%emt 0:03:54]} 20. h4 {[%emt 0:04:41]} Qa6 {[%emt 0:07:32]} 21. g3 {[%emt 0:04:01]} b5 {[%emt 0:03:21]} 22. Nd6+ {[%emt 0:06:33]} Bxd6 {[%emt 0:01:00]} 23. exd6 {[%emt 0:00:04]} b4 {[%emt 0:00:43]} 24. Bc4 {[%emt 0:01:54]} Qb6 {[%emt 0:01:22]} 25. Ne5 {[%emt 0:02:36]} Qxd4 {[%emt 0:04:37]} 26. Nxd7 {[%emt 0:01:30]} b3 {[%emt 0:01:44]} 27. Bxb3 {[%emt 0:00:20]} axb3 {[%emt 0:02:54]} 28. Qxc6 {[%emt 0:00:07]} 1-0

[Event "Teplice Open 2019"]
[Site "Teplice"]
[Date "2019.06.19"]
[Round "5.15"]
[White "Eden, James"]
[Black "Ali Marandi, Cemil Can"]
[Result "0-1"]
[ECO "D13"]
[WhiteElo "2346"]
[BlackElo "2520"]
[Annotator "ChessBase"]
[PlyCount "42"]
[EventDate "2019.06.15"]
[EventType "swiss"]
[EventCountry "CZE"]
[SourceTitle "playchess.com"]
[Source "ChessBase"]
[SourceQuality "1"]
[TimeControl "40/5400+30:1800+30"]

1. d4 {[%emt 0:00:00]} Nf6 {[%emt 0:01:58]} 2. Nf3 {[%emt 0:00:05]} d5 {[%emt 0:00:11]} 3. c4 {[%emt 0:00:41]} c6 {[%emt 0:00:59]} 4. cxd5 {[%emt 0:00:25]} cxd5 {[%emt 0:00:02]} 5. Nc3 {[%emt 0:00:18]} Nc6 {[%emt 0:00:27]} 6. Bf4 {[%emt 0:00:21]} Nh5 {[%emt 0:00:22]} 7. Bd2 {[%emt 0:01:10]} g6 {[%emt 0:00:48]} 8. e3 {[%emt 0:05:58]} Bg7 {[%emt 0:00:28]} 9. Qb3 {[%emt 0:01:42]} Nf6 {[%emt 0:01:53]} 10. Ne5 {[%emt 0:12:24]} O-O {[%emt 0:01:33]} 11. Nxc6 {[%emt 0:03:15]} bxc6 {[%emt 0:01:27]} 12. Bd3 {[%emt 0:04:19]} e5 {[%emt 0:01:35]} 13. dxe5 {[%emt 0:03:32]} Nd7 {[%emt 0:00:55]} 14. Na4 {[%emt 0:06:54]} Rb8 {[%emt 0:02:16]} 15. Qc2 {[%emt 0:04:22]} Nxe5 {[%emt 0:00:54]} 16. O-O {[%emt 0:00:55]} Qh4 {[%emt 0:02:28]} 17. b3 {[%emt 0:11:11]} Nf3+ {[%emt 0:09:30]} 18. gxf3 {[%emt 0:00:10]} Be5 {[%emt 0:00:08]} 19. Rfc1 {[%emt 0:04:07]} Bh3 {[%emt 0:00:53]} 20. e4 {[%emt 0:07:01]} Bxh2+ {[%emt 0:00:51]} 21. Kh1 {[%emt 0:00:07]} Bg4 {[%emt 0:02:25]} 0-1

[Event "Teplice Open 2019"]
[Site "Teplice"]
[Date "2019.06.19"]
[Round "5.16"]
[White "Greenfeld, Alon"]
[Black "Risting, Eivind Olav"]
[Result "1-0"]
[ECO "D24"]
[WhiteElo "2513"]
[BlackElo "2357"]
[Annotator "ChessBase"]
[PlyCount "59"]
[EventDate "2019.06.15"]
[EventType "swiss"]
[EventCountry "CZE"]
[SourceTitle "playchess.com"]
[Source "ChessBase"]
[SourceQuality "1"]
[TimeControl "40/5400+30:1800+30"]

1. d4 {[%emt 0:00:20]} Nf6 {[%emt 0:00:00]} 2. Nf3 {[%emt 0:01:04]} e6 {[%emt 0:01:09]} 3. c4 {[%emt 0:02:30]} d5 {[%emt 0:01:09]} 4. Nc3 {[%emt 0:02:03]} dxc4 {[%emt 0:00:40]} 5. e4 {[%emt 0:02:49]} b5 {[%emt 0:00:29]} 6. e5 {[%emt 0:00:20]} Nd5 {[%emt 0:00:08]} 7. Nxb5 {[%emt 0:00:10]} Nb6 {[%emt 0:00:11]} 8. Be2 {[%emt 0:00:45]} Nc6 {[%emt 0:00:37]} 9. O-O {[%emt 0:00:41]} Be7 {[%emt 0:00:12]} 10. Qd2 {[%emt 0:00:54]} Bb7 {[%emt 0:01:09]} 11. Rd1 {[%emt 0:08:56]} Qd7 {[%emt 0:05:30]} 12. Qf4 {[%emt 0:08:26]} Nb4 {[%emt 0:12:16]} 13. Nc3 {[%emt 0:03:31]} O-O-O {[%emt 0:12:20]} 14. Qxf7 {[%emt 0:07:32]} Rdf8 {[%emt 0:25:03]} 15. Qh5 {[%emt 0:01:43]} Rf5 {[%emt 0:03:22]} 16. Qh3 {[%emt 0:04:23]} N4d5 {[%emt 0:04:27]} 17. Nxd5 {[%emt 0:15:51]} Bxd5 {[%emt 0:03:15]} 18. Be3 {[%emt 0:01:02]} g5 {[%emt 0:03:16]} 19. Ne1 {[%emt 0:05:23]} h5 {[%emt 0:07:15]} 20. g4 {[%emt 0:02:21]} Rff8 {[%emt 0:00:27]} 21. gxh5 {[%emt 0:00:26]} g4 {[%emt 0:02:13]} 22. Bxg4 {[%emt 0:01:34]} Rfg8 {[%emt 0:00:42]} 23. f3 {[%emt 0:01:44]} Na4 {[%emt 0:02:09]} 24. Rd2 {[%emt 0:04:21]} Qb5 {[%emt 0:02:37]} 25. Ng2 {[%emt 0:12:45]} Nxb2 {[%emt 0:01:53]} 26. Bxe6+ {[%emt 0:00:34]} Kb8 {[%emt 0:02:43]} 27. Bxd5 {[%emt 0:02:12]} c3 {[%emt 0:00:24]} 28. Rc2 {[%emt 0:01:28]} Qd3 {[%emt 0:00:40]} 29. Bxg8 {[%emt 0:02:58]} Qxc2 {[%emt 0:01:28]} 30. Qe6 {[%emt 0:00:29]} 1-0

[Event "Teplice Open 2019"]
[Site "Teplice"]
[Date "2019.06.19"]
[Round "5.19"]
[White "Karas, Marek"]
[Black "Haldorsen, Benjamin"]
[Result "1/2-1/2"]
[ECO "D26"]
[WhiteElo "2268"]
[BlackElo "2454"]
[Annotator "ChessBase"]
[PlyCount "61"]
[EventDate "2019.06.15"]
[EventType "swiss"]
[EventCountry "CZE"]
[SourceTitle "playchess.com"]
[Source "ChessBase"]
[SourceQuality "1"]
[TimeControl "40/5400+30:1800+30"]

1. d4 {[%emt 0:00:00]} Nf6 {[%emt 0:00:00]} 2. Nf3 {[%emt 0:00:00]} d5 {[%emt 0:05:14]} 3. c4 {[%emt 0:00:00]} dxc4 {[%emt 0:03:17]} 4. e3 {[%emt 0:00:00]} e6 {[%emt 0:00:03]} 5. Bxc4 {[%emt 0:00:12]} a6 {[%emt 0:00:02]} 6. O-O {[%emt 0:00:16]} b5 {[%emt 0:00:14]} 7. Be2 {[%emt 0:04:07]} Bb7 {[%emt 0:00:36]} 8. Nbd2 {[%emt 0:00:39]} Nbd7 {[%emt 0:04:43]} 9. a4 {[%emt 0:03:52]} b4 {[%emt 0:01:21]} 10. Nc4 {[%emt 0:04:21]} c5 {[%emt 0:11:29]} 11. Nfe5 {[%emt 0:09:10]} Qc7 {[%emt 0:06:38]} 12. Bf3 {[%emt 0:03:42]} Be7 {[%emt 0:08:35]} 13. Nxd7 {[%emt 0:14:43]} Nxd7 {[%emt 0:01:19]} 14. d5 {[%emt 0:01:35]} exd5 {[%emt 0:01:05]} 15. Bxd5 {[%emt 0:01:40]} Rd8 {[%emt 0:06:58]} 16. Bxb7 {[%emt 0:01:36]} Qxb7 {[%emt 0:00:02]} 17. Qe2 {[%emt 0:02:21]} Qe4 {[%emt 0:10:08]} 18. b3 {[%emt 0:03:25]} O-O {[%emt 0:03:48]} 19. Bb2 {[%emt 0:01:06]} Bf6 {[%emt 0:01:38]} 20. f3 {[%emt 0:03:12]} Qe6 {[%emt 0:00:25]} 21. Rfd1 {[%emt 0:01:47]} Bxb2 {[%emt 0:03:02]} 22. Qxb2 {[%emt 0:00:11]} Nb6 {[%emt 0:01:17]} 23. Nxb6 {[%emt 0:00:17]} Qxb6 {[%emt 0:00:01]} 24. Qe2 {[%emt 0:01:22]} Qe6 {[%emt 0:00:17]} 25. Rd3 {[%emt 0:03:41]} c4 {[%emt 0:14:23]} 26. Rxd8 {[%emt 0:00:26]} Rxd8 {[%emt 0:00:01]} 27. bxc4 {[%emt 0:04:32]} Qe5 {[%emt 0:01:06]} 28. Rc1 {[%emt 0:02:41]} g6 {[%emt 0:00:09]} 29. c5 {[%emt 0:01:47]} b3 {[%emt 0:06:01]} 30. c6 {[%emt 0:00:49]} Rc8 {[%emt 0:02:32]} 31. Qd2 {[%emt 0:02:39]} 1/2-1/2